Cogmind - Beta 12 @@@ ROGUE MODE // 2023.03.05 @ 20:45:46 Player: NoNeedToExplain Result: Destroyed by NK-0LA with NK-0LA's Tesla Doomcannon Performance ------------- Evolutions (3) 1500 Regions Visited (9) 1800 Robots Destroyed (124) 620 Value Destroyed (4168) 4168 Prototype IDs (4) 80 Alien Tech Used (0) 0 Bonus (13) 13 TOTAL SCORE: 8181 Bonus ------- High Alert Combat Kills 125 Follower Combat Kills 92 Friendly Fire -204 Cogmind --------- Core Integrity 0/700 Matter 214/300 Energy 88/100 System Corruption 36% Temperature Cool (0) Movement Core (50) Location -7/Zion Parts ------- > --- POWER (1) -------- (None) > --- PROPULSION (4) --- (None) > --- UTILITY (5) ------ (None) > --- WEAPON (3) ------- Heavy Hammer > --- INVENTORY (5) ---- High-capacity Battery (250) Improved Signal Interpreter EM Pulse Cannon Proton Missile Launcher Chainsword Peak State ------------ > --- POWER ------------ Hybrid Deuterium Engine > --- PROPULSION ------- Armored Treads Armored Treads Wheel Compact Wheel > --- UTILITY ---------- Coolant Injector Large Storage Unit Improved Targeting Computer Hardened Heavy Armor Plating > --- WEAPON ----------- Mass Driver Mass Driver Mass Driver > --- INVENTORY -------- Light Nuclear Core Reinforced Deuterium Engine Fission Core Improved Heat Sink Improved Cooling System High-capacity Matter Pod Improved Signal Interpreter Improved Medium Armor Plating EM Pulse Cannon Improved EM Pulse Cannon Mass Driver Proton Missile Launcher Improved Grenade Launcher Heavy Rocket Launcher Heavy Hammer [Rating: 50] Favorites ----------- Power Light Ion Engine Engine Light Ion Engine Power Core Light Nuclear Core Propulsion Improved Treads Treads Improved Treads Leg Aluminum Leg Wheel Wheel Utility Large Storage Unit Device Improved Cooling System Storage Large Storage Unit Processor Improved Targeting Computer Hackware Hacking Suite Protection Light Armor Plating Weapon Light Cannon Energy Gun EM Pulse Gun Energy Cannon Improved EM Pulse Cannon Ballistic Gun High-powered Shotgun Ballistic Cannon Light Cannon Launcher Heavy Rocket Launcher Impact Weapon Heavy Hammer Slashing Weapon Chainsword Build | -11 -10 -10 -10 -9 -8 -7 -7 -7 -7 ------- Run | Jun Mat Min Exi Min Mat Fac Low Low Zio Slots Evolved 6 | . . . . . 4 2 . . . Power . | . . . . . . . . . . Propulsion 2 | . . . . . 1 1 . . . Utility 3 | . . . . . 2 1 . . . Weapon 1 | . . . . . 1 . . . . Parts Attached 114 | 7 8 2 . 5 24 36 12 13 7 Power 10 | 1 . . . 2 1 2 3 1 . Engine 6 | 1 . . . 1 1 1 1 1 . Core 4 | . . . . 1 . 1 2 . . Reactor . | . . . . . . . . . . Propulsion 24 | 2 3 . . . 2 10 2 3 2 Treads 17 | 2 3 . . . 2 7 2 1 . Leg 3 | . . . . . . . . 1 2 Wheel 4 | . . . . . . 3 . 1 . Hover . | . . . . . . . . . . Flight . | . . . . . . . . . . Utility 28 | 2 2 1 . 1 6 8 4 3 1 Device 12 | 1 . . . . 1 5 3 1 1 Storage 3 | 1 2 . . . . . . . . Processor 2 | . . . . 1 1 . . . . Hackware 1 | . . . . . . 1 . . . Protection 10 | . . 1 . . 4 2 1 2 . Artifact . | . . . . . . . . . . Weapon 52 | 2 3 1 . 2 15 16 3 6 4 Energy Gun 3 | 1 . . . . 2 . . . . Energy Cannon 5 | . . . . . 1 1 . 2 1 Ballistic Gun 5 | 1 1 . . . 2 . . . 1 Ballistic Cannon 23 | . 2 1 . 2 6 7 2 2 1 Launcher 8 | . . . . . 4 3 . 1 . Special Weapon . | . . . . . . . . . . Impact Weapon 6 | . . . . . . 5 . . 1 Slashing Weapon 2 | . . . . . . . 1 1 . Piercing Weapon . | . . . . . . . . . . Special Melee Weapon . | . . . . . . . . . . Unidentified Prototypes 4 | . . . . . 3 1 . . . Corrupted Parts 2 | . . . . . . . . 1 1 System Corruption 11 | . . . . . . . . 2 9 Parts Lost 30 | . . . . . 3 7 1 4 15 Power 3 | . . . . . . 1 1 . 1 Propulsion 10 | . . . . . 1 2 . 2 5 Utility 10 | . . . . . 1 3 . 2 4 Weapon 7 | . . . . . 1 1 . . 5 Highest Loss Streak 15 | . . . . . 2 4 1 3 15 To Critical Strikes . | . . . . . . . . . . Average Slot Usage (%) 98 | . 100 99 100 100 99 95 97 97 88 Engine 8 | . 14 14 14 10 6 6 1 7 6 Core 1 | . . . . 3 2 . 5 . . Treads 23 | . 28 28 28 28 26 17 22 21 9 Wheel 4 | . . . . . . 11 7 6 6 Device 11 | . 14 1 . . 7 8 21 22 20 Storage 9 | . 14 14 14 14 9 7 7 7 6 Processor 2 | . . . . 2 9 5 . . . Protection 7 | . . 12 14 11 10 7 7 6 5 Energy Cannon 2 | . . . . . . 1 . 13 5 Ballistic Gun 1 | . 1 . . . 12 . . . . Ballistic Cannon 17 | . 26 27 28 28 12 15 16 3 13 Impact Weapon 1 | . . . . . . 4 1 . . Slashing Weapon 1 | . . . . . . . 3 3 . Naked Turns . | . . . . . . . . . . Heaviest Build 75 | 12 30 38 38 38 49 75 71 72 64 Greatest Support 69 | 40 46 46 46 46 69 43 66 40 10 Greatest Overweight (x) 7 | 2 . . . . . 7 7 7 6 Average Overweight (x) 2 | . . . . . . 2 5 6 5 Largest Inventory Capacity 15 | 8 15 15 15 15 15 15 15 15 15 Average Capacity 14 | 7 12 15 15 15 15 15 15 15 14 Most Carried 15 | 7 15 15 15 15 15 15 15 15 15 Average Carried 14 | 3 11 14 14 14 14 14 14 14 13 Final Capacity 15 | 8 15 15 15 15 15 15 15 15 5 Final Carried 15 | 7 15 15 15 15 15 13 15 14 5 Class Distribution -------------------- 68% | Mutant 16% | Gunner 12% | Scavenger-Mutant 3% | Tank Dominant Class ---------------- Mutant | -10/Materials Mutant | -10/Mines Mutant | -10/Exiles Mutant | -9/Mines Gunner | -8/Materials Mutant | -7/Factory Mutant | -7/Lower Caves Scavenger-Mutant | -7/Lower Caves Scavenger-Mutant | -7/Zion Resources | -11 -10 -10 -10 -9 -8 -7 -7 -7 -7 ----------- Run | Jun Mat Min Exi Min Mat Fac Low Low Zio Matter Collected 4377 | 228 401 144 . 176 919 1071 941 376 121 Remotely 931 | . . . . . . . 717 214 . Salvage Created 3517 | 14 413 . . 90 646 1276 429 610 39 Parts 155 | 2 28 . . 10 31 49 13 22 . Haulers Intercepted 6 | . 2 . . . 3 1 . . . Recyclers Shooed 4 | . . . . . 2 2 . . . Parts Field Recycled . | . . . . . . . . . . Retrieved Matter . | . . . . . . . . . . Parts Self-Destructed 33 | . . . . . . . 14 19 . Prevented 5 | . . . . . . . . 5 . Kills | -11 -10 -10 -10 -9 -8 -7 -7 -7 -7 ------- Run | Jun Mat Min Exi Min Mat Fac Low Low Zio Combat Hostiles Destroyed 87 | . 8 1 . 5 19 28 13 13 . Melee 1 | . . . . . . 1 . . . Guns 4 | . 1 . . . 3 . . . . Cannons 58 | . 7 1 . 5 10 12 13 10 . AOE 21 | . . . . . 6 13 . 2 . Classes Destroyed 18 | 1 5 1 . . 5 4 2 . . Worker 5 | . . . . . 2 3 . . . Builder 6 | . . . . . 2 4 . . . Tunneler 2 | 1 . . . . . 1 . . . Hauler 6 | . 2 . . . 3 1 . . . Recycler 8 | . 2 . . . 1 5 . . . Mechanic 3 | . . . . . . 3 . . . Operator 1 | . . . . . . 1 . . . Watcher 5 | . 2 . . . 1 2 . . . Swarmer 19 | . 3 . . 3 4 6 2 1 . Grunt 39 | . 5 . . 2 10 7 6 8 1 Brawler 4 | . . . . . 1 1 2 . . Duelist 3 | . . . . . . . 2 1 . Sentry 9 | . . . . . 3 3 1 2 . Demolisher 1 | . . 1 . . . . . . . Specialist 1 | . . . . . . 1 . . . Hunter 3 | . . . . . 1 1 . 1 . Programmer 9 | . . . . . . 9 . . . Tinkerer 1 | . . . . . . . 1 . . Best Kill Streak 12 | 1 5 1 . 3 10 12 4 6 . Combat Bots Only 9 | . 5 1 . 3 7 9 4 6 . Max Kills in Single Turn 5 | 1 1 1 . 1 4 5 1 1 1 Gunslinging . | . . . . . . . . . . Exploded 4 | . . . . . 2 4 . 1 . Melee 1 | . . . . . . 1 . . . Uniques/NPCs Destroyed . | . . . . . . . . . . Combat | -11 -10 -10 -10 -9 -8 -7 -7 -7 -7 -------- Run | Jun Mat Min Exi Min Mat Fac Low Low Zio Damage Taken 6594 | . 166 40 . 248 976 1947 984 763 1470 Core 895 | . 27 . . 55 97 122 92 93 409 Absorbed by Shields 440 | . . . . . . 40 200 200 . Core Remaining (%) 83 | 100 . . . 67 82 . . . . Volleys Fired 215 | 1 26 1 . 14 55 43 32 28 15 Largest 3 | 2 2 2 . 2 3 3 3 3 3 Hottest 189 | 60 70 70 . 92 123 171 171 189 171 Shots Fired 492 | 2 52 2 . 28 144 99 82 52 31 Gun 70 | 2 8 . . . 55 . . . 5 Cannon 402 | . 44 2 . 28 82 90 82 48 26 Launcher 20 | . . . . . 7 9 . 4 . Special . | . . . . . . . . . . Kinetic 428 | 1 52 2 . 28 131 83 82 22 27 Thermal 4 | . . . . . . . . . 4 Explosive 20 | . . . . . 7 9 . 4 . Electromagnetic 40 | 1 . . . . 6 7 . 26 . Robot Hit Streak 14 | 1 8 4 . 5 14 9 9 14 5 Robot Miss Streak 5 | . 4 . . 5 4 2 3 3 3 Penetration Max . | . . . . . . . . . . Secondary Targets . | . . . . . . . . . . Shots Hit Robots 336 | 1 34 1 . 13 104 79 51 33 20 Core Hits 185 | 1 18 2 . 6 52 70 17 17 2 Critical Kills 1 | . . . . . . 1 . . . Critical Parts Destroyed 5 | . . . . 1 1 3 . . . Critical Strikes 18 | . 1 . . 1 7 5 3 . 1 Destroy 2 | . . . . 1 1 . . . . Blast 12 | . 1 . . . 6 1 3 . 1 Smash 4 | . . . . . . 4 . . . Melee Attacks 48 | . . . . . . 42 5 . 1 Impact 43 | . . . . . . 42 . . 1 Slashing 5 | . . . . . . . 5 . . Piercing . | . . . . . . . . . . Sneak Attacks 9 | . . . . . . 8 1 . . Combat Hostiles . | . . . . . . . . . . Follow-up Attacks . | . . . . . . . . . . Damage Inflicted 13561 | 15 528 23 . 310 2967 5745 2059 1258 656 Guns 872 | 15 64 . . . 700 . . . 93 Cannons 7142 | . 464 20 . 310 1315 1777 1814 941 501 Explosions 4187 | . . . . . 920 2950 . 317 . Melee 1325 | . . . . . . 1018 245 . 62 Ramming 35 | . . 3 . . 32 . . . . Kinetic 7338 | . 528 20 . 310 1975 1657 1814 463 571 Thermal 1087 | . . . . . . 1001 . 63 23 Explosive 3123 | . . . . . 920 1949 . 254 . Electromagnetic 653 | 15 . . . . 40 120 . 478 . Impact 1080 | . . . . . . 1018 . . 62 Slashing 245 | . . . . . . . 245 . . Piercing . | . . . . . . . . . . Highest Corruption 35 | . . . . . . 10 10 12 35 Average Corruption 9 | . . . . . . 6 10 10 15 Corruption Purged . | . . . . . . . . . . Corruption Blocked . | . . . . . . . . . . Effects 107 | . . . . . . 19 33 47 8 Message Errors 25 | . . . . . . 5 10 9 1 Matter Fused 21 | . . . . . . 6 4 10 1 Heat Flow Errors 12 | . . . . . . 2 2 7 1 Energy Discharges 7 | . . . . . . . 3 3 1 Parts Rejected 6 | . . . . . . 2 3 1 . Data Loss (minor) 17 | . . . . . . 1 8 8 . Data Loss (major) 5 | . . . . . . 1 . 3 1 Misfires 4 | . . . . . . . 2 1 1 Alerts 4 | . . . . . . 1 . 3 . Misdirections 2 | . . . . . . 1 . . 1 Weapon Failures 4 | . . . . . . . 1 2 1 Overload Shots . | . . . . . . . . . . Overflow Damage 1080 | . . . . 8 56 849 136 5 26 Projectiles 307 | . . . . 8 15 198 60 . 26 Explosions 243 | . . . . . 41 197 . 5 . Melee 530 | . . . . . . 454 76 . . Knockbacks 58 | . 7 . . 4 19 8 12 2 6 Impact 5 | . . . . . 1 4 . . . Kinetic 51 | . 7 . . 4 16 4 12 2 6 Secondary 2 | . . . . . 2 . . . . Self-Inflicted Damage 263 | . . . . . 62 152 . 49 . Shots 6 | . . . . . 2 2 . 2 . Rammed 5 | . . 2 . . 2 1 . . . Targets Rammed 6 | . . 2 . . 3 1 . . . Kicked . | . . . . . . . . . . Crushed 1 | . . . . . 1 . . . . Highest Temperature 336 | 20 75 18 . 336 234 250 181 202 303 Average Temperature 82 | 10 22 9 . 147 77 95 63 64 102 Received Heat Transfer 1340 | . 72 . . 27 513 180 280 268 . Effects 6 | . . . . 3 . . . . 3 Shutdowns 1 | . . . . 1 . . . . . Energy Bleed 3 | . . . . 1 . . . . 2 Interference 1 | . . . . . . . . . 1 Matter Decay 1 | . . . . 1 . . . . . Siege Activations . | . . . . . . . . . . Robots Corrupted 1 | . . . . . . . . 1 . Combat Hostiles 1 | . . . . . . . . 1 . Parts Fried 12 | . . . . . . 10 . 2 . Impact Corruptions 20 | . . . . . . 20 . . . Robots Melted . | . . . . . . . . . . Combat Hostiles . | . . . . . . . . . . Parts Melted . | . . . . . . . . . . Heat Transferred 818 | . . . . . . 700 . 100 18 Parts Sabotaged . | . . . . . . . . . . Parts Stolen . | . . . . . . . . . . Parts Stripped . | . . . . . . . . . . Power Chain Reactions 1 | . . . . . . . . 1 . Missiles Intercepted . | . . . . . . . . . . Alert | -11 -10 -10 -10 -9 -8 -7 -7 -7 -7 ------- Run | Jun Mat Min Exi Min Mat Fac Low Low Zio Peak Influence 662 | 5 268 20 . 73 547 662 . . . Initial 126 | . 3 . . . 25 126 . . . Average 160 | . 116 8 . 19 377 191 . . . Maximum Alert Level 2 | . 1 . . . 2 2 . . . Low Security (%) 70 | 100 74 100 . 100 17 70 . . . Level 1 10 | . 25 . . . 18 7 . . . Level 2 18 | . . . . . 63 21 . . . Level 3 . | . . . . . . . . . . Level 4 . | . . . . . . . . . . Level 5 . | . . . . . . . . . . High Security . | . . . . . . . . . . Max Security . | . . . . . . . . . . Squads Dispatched 15 | . 1 . . 1 1 11 . 1 . Investigation 3 | . 1 . . 1 . 1 . . . Extermination 3 | . . . . . . 3 . . . Reinforcement 3 | . . . . . . 3 . . . Assault 1 | . . . . . . . . 1 . Garrison 5 | . . . . . 1 4 . . . Intercept . | . . . . . . . . . . Searches Triggered . | . . . . . . . . . . Construction Impeded 1 | . . . . . . 1 . . . Haulers Reinforced 2 | . . . . . . 2 . . . Active Scanning Responses . | . . . . . . . . . . Cargo Convoy Interrupts 1 | . . . . . . 1 . . . Stealth | -11 -10 -10 -10 -9 -8 -7 -7 -7 -7 --------- Run | Jun Mat Min Exi Min Mat Fac Low Low Zio Distress Signals 4 | . . . . . 1 3 . . . Communications Jammed . | . . . . . . . . . . Distress Signals . | . . . . . . . . . . Times Spotted 136 | . 13 1 . 5 39 42 16 17 3 Peak Tracking Total 12 | . 3 1 . 3 7 12 7 11 2 Tactical Retreats 14 | . 1 . . . 2 3 1 6 1 Traps | -11 -10 -10 -10 -9 -8 -7 -7 -7 -7 ------- Run | Jun Mat Min Exi Min Mat Fac Low Low Zio Traps Triggered 3 | . . . . . . 2 1 . . Indirectly . | . . . . . . . . . . Trap Hack Attempts . | . . . . . . . . . . Triggered . | . . . . . . . . . . Disarmed . | . . . . . . . . . . Reprogrammed . | . . . . . . . . . . Reused . | . . . . . . . . . . Traps Extracted . | . . . . . . . . . . Installed . | . . . . . . . . . . Triggered 4 | . . . . . . . . 4 . Exploded 1 | . . . . . 1 . . . . Machines | -11 -10 -10 -10 -9 -8 -7 -7 -7 -7 ---------- Run | Jun Mat Min Exi Min Mat Fac Low Low Zio Machines Disabled 15 | . . . . . 2 12 1 . . Max in Single Turn 6 | . . . . . 1 6 1 . . Garrison Access 1 | . . . . . . 1 . . . Machines Repaired . | . . . . . . . . . . Machines Sabotaged . | . . . . . . . . . . Overloaded Fab Kills . | . . . . . . . . . . Hacking | -11 -10 -10 -10 -9 -8 -7 -7 -7 -7 --------- Run | Jun Mat Min Exi Min Mat Fac Low Low Zio Machines Accessed 26 | . 7 . 1 2 4 12 . . . Terminals 20 | . 6 . . 1 3 10 . . . Fabricators 1 | . . . . . . 1 . . . Repair Stations 1 | . 1 . . . . . . . . Recycling Units 1 | . . . . . 1 . . . . Scanalyzers . | . . . . . . . . . . Garrison Access 1 | . . . . . . 1 . . . Total Hacks 69 | . 17 . 4 4 10 34 . . . Successful 29 | . 4 . 4 1 3 17 . . . Failed 40 | . 13 . . 3 7 17 . . . Catastrophic 11 | . 4 . . 1 3 3 . . . Database Lockouts . | . . . . . . . . . . Manual 39 | . 12 . . 3 9 15 . . . Terminals 56 | . 15 . . 3 9 29 . . . Fabricators 3 | . . . . . . 3 . . . Repair Stations 2 | . 2 . . . . . . . . Recycling Units 1 | . . . . . 1 . . . . Scanalyzers . | . . . . . . . . . . Garrison Access 2 | . . . . . . 2 . . . Terminal Hacks 17 | . 1 . 4 1 3 8 . . . Record 4 | . . . 4 . . . . . . Open Door 1 | . . . . 1 . . . . . Branch Access Points 2 | . . . . . 1 1 . . . Terminal Index 1 | . . . . . . 1 . . . Garrison Index 1 | . . . . . . 1 . . . Alert Level 2 | . . . . . 1 1 . . . Unreport Threat 5 | . 1 . . . 1 3 . . . Locate Traps 1 | . . . . . . 1 . . . Fabricator Hacks 1 | . . . . . . 1 . . . Network Status 1 | . . . . . . 1 . . . Repair Station Hacks . | . . . . . . . . . . Recycling Unit Hacks . | . . . . . . . . . . Scanalyzer . | . . . . . . . . . . Garrison Access Hacks 1 | . . . . . . 1 . . . Seal Access 1 | . . . . . . 1 . . . Unauthorized Hacks 10 | . 3 . . . . 7 . . . Terminals 8 | . 2 . . . . 6 . . . Track 3 | . . . . . . 3 . . . Botnet 4 | . 2 . . . . 2 . . . Operators 1 | . . . . . . 1 . . . Fabricators 1 | . . . . . . 1 . . . Fabnet 1 | . . . . . . 1 . . . Repair Stations 1 | . 1 . . . . . . . . Mechanics 1 | . 1 . . . . . . . . Recycling Units . | . . . . . . . . . . Scanalyzers . | . . . . . . . . . . Garrison Access . | . . . . . . . . . . Data Cores Recovered 1 | . . . . . . 1 . . . Used 1 | . . . . . . 1 . . . Hacking Detections 23 | . 6 . . 1 4 12 . . . Full Trace Events 4 | . 2 . . . 1 1 . . . Feedback Events . | . . . . . . . . . . Feedback Blocked . | . . . . . . . . . . Robot Schematics Acquired . | . . . . . . . . . . Robots Built . | . . . . . . . . . . Authchips . | . . . . . . . . . . Time . | . . . . . . . . . . Total Robot Build Rating . | . . . . . . . . . . Part Schematics Acquired . | . . . . . . . . . . Parts Built . | . . . . . . . . . . Authchips . | . . . . . . . . . . Time . | . . . . . . . . . . Total Part Build Rating . | . . . . . . . . . . Parts Repaired . | . . . . . . . . . . Time . | . . . . . . . . . . Parts Recycled . | . . . . . . . . . . Recycled Matter . | . . . . . . . . . . Retrieved Matter . | . . . . . . . . . . Retrieved Components . | . . . . . . . . . . Parts Scanalyzed . | . . . . . . . . . . Part Schematics Acquired . | . . . . . . . . . . Parts Damaged . | . . . . . . . . . . Bothacking | -11 -10 -10 -10 -9 -8 -7 -7 -7 -7 ------------ Run | Jun Mat Min Exi Min Mat Fac Low Low Zio Used RIF Installer . | . . . . . . . . . . Robots Hacked . | . . . . . . . . . . Non-combat . | . . . . . . . . . . Combat . | . . . . . . . . . . Robot Hacks Applied . | . . . . . . . . . . Relay Couplers Released . | . . . . . . . . . . Fabnet Peak Effective % . | . . . . . . . . . . Robots Rewired 4 | . . . . . . . 2 2 . Allies Hacked . | . . . . . . . . . . Hacks Repelled . | . . . . . . . . . . Allies | -11 -10 -10 -10 -9 -8 -7 -7 -7 -7 -------- Run | Jun Mat Min Exi Min Mat Fac Low Low Zio Total Allies 4 | . . . . . . . 2 2 . Largest Group 2 | . . . . . . . 2 2 2 Highest-Rated Group 50 | . . . . . . . 50 32 32 Highest-Rated Ally 30 | . . . . . . . 30 16 16 Total Orders . | . . . . . . . . . . Ally Attacks 25 | . . . . . . . 5 . 20 Total Damage 301 | . . . . . . . 138 . 163 Kills 3 | . . . . . . . 2 . 1 Allies Corrupted . | . . . . . . . . . . Allies Melted 1 | . . . . . . . 1 . . Intel | -11 -10 -10 -10 -9 -8 -7 -7 -7 -7 ------- Run | Jun Mat Min Exi Min Mat Fac Low Low Zio Robot Analysis Total . | . . . . . . . . . . Derelict Logs Recovered 4 | . . 1 . 1 . . 2 . . Drone Launches . | . . . . . . . . . . Drone Recoveries . | . . . . . . . . . . Exploration | -11 -10 -10 -10 -9 -8 -7 -7 -7 -7 ------------- Run | Jun Mat Min Exi Min Mat Fac Low Low Zio Turns Passed 7526 | 89 902 621 507 626 845 1710 990 1077 159 Spaces Moved 3934 | 47 489 361 315 353 380 917 489 525 58 Core 13 | 6 . . . . . . . . 7 Treads 2148 | 41 489 361 315 353 380 135 69 5 . Legs . | . . . . . . . . . . Wheels 1773 | . . . . . . 782 420 520 51 Hover . | . . . . . . . . . . Flight . | . . . . . . . . . . Fastest Speed 50 | 50 160 160 160 160 160 105 155 170 50 Average Speed 159 | 148 160 160 160 160 160 147 169 173 156 Slowest Speed 250 | 160 160 160 160 160 160 250 240 240 170 Overloaded Moves . | . . . . . . . . . . Propulsion Burnouts . | . . . . . . . . . . Robots Hopped . | . . . . . . . . . . Cave-ins Triggered . | . . . . . . . . . . Exploration Rate (%) 54 | 3 77 88 77 72 41 31 73 77 5 Regions Visited 9 Branch Regions 6 Pre-discovered Areas 3 | . . . 1 2 . . . . . Known Exits Taken 2 | . . . . . 1 1 . . . Unknown Exits Taken 7 | 1 1 1 1 1 . . 1 1 . Scrap Searched 10 | . . 1 . 2 . . 3 4 . Spaces Dug 55 | . . . . . 15 40 . . . Terrain Destroyed 384 | . . . . 3 63 230 28 49 11 Melee 14 | . . . . . . 14 . . . Projectile 87 | . . . . 3 13 23 28 9 11 AOE 283 | . . . . . 50 193 . 40 . Terrain Rammed . | . . . . . . . . . . Walls Destroyed . | . . . . . . . . . . Machines Disabled . | . . . . . . . . . . Actions | -11 -10 -10 -10 -9 -8 -7 -7 -7 -7 --------- Run | Jun Mat Min Exi Min Mat Fac Low Low Zio Total 4662 | 61 566 401 320 389 506 1109 573 640 97 Wait 173 | . 17 34 . 5 17 29 6 53 12 Move 3925 | 46 488 360 314 352 379 916 488 524 58 Hop . | . . . . . . . . . . Pick Up 67 | 7 13 . 3 4 14 11 9 5 1 Fast Attach 41 | 7 2 1 . 3 4 14 5 3 2 Attach 25 | . . . . 1 7 5 4 4 4 Detach 9 | . 2 1 . 2 1 2 . 1 . Swap 48 | . 6 1 . 1 13 17 3 6 1 Drop 69 | . 12 1 3 7 13 21 5 4 3 Fire 215 | 1 26 1 . 14 55 43 32 28 15 Melee 48 | . . . . . . 42 5 . 1 Ram 1 | . . . . . . 1 . . . Kick . | . . . . . . . . . . Crush 5 | . . 2 . . 3 . . . . Escape Stasis 8 | . . . . . . 8 . . . Rewire 28 | . . . . . . . 16 12 . Trap . | . . . . . . . . . . Miscellaneous . | . . . . . . . . . . Route ------- -11/Junkyard -10/Materials (discovered 3 exits: [*Mat x2] / [*Min]) -10/Mines (discovered 3 exits: [*Mat x2] / *Exi) -10/Exiles -9/Mines (discovered 2 exits: *Mat x2) -8/Materials (discovered 2 exits: *Fac x2) -7/Factory (discovered 3 exits: Sto / *Low x2) -7/Lower Caves (discovered 2 exits: [*Low] / [*Zio]) -7/Lower Caves (discovered 2 exits: [*Fac] / [*Zio]) -7/Zion History --------- Turn | Location | Event 2 | -11/Junkyard | Met Revision 17 23 | -11/Junkyard | Discovered new exit (range 16) 90 | -11/Junkyard | Entered Materials 337 | -10/Materials | Build established: Mutant 746 | -10/Materials | Discovered new exit (range 8) 818 | -10/Materials | Discovered new exit (range 15) 978 | -10/Materials | Discovered new exit (range 6) 992 | -10/Materials | Entered Mines 1046 | -10/Mines | Assembled infested the area 1158 | -10/Mines | Discovered new exit (range 9) 1166 | -10/Mines | A weapon hastily lodged in a ceiling crevice suddenly fell to the ground 1232 | -10/Mines | Learned location of 1 exit from Materials 1536 | -10/Mines | Discovered new exit (range 13) 1606 | -10/Mines | Deemed a non-threat by the Exiles lab entrance 1606 | -10/Mines | Discovered new exit (range 5) 1613 | -10/Mines | Entered Exiles 1658 | -10/Exiles | Met 8R-AWN 1685 | -10/Exiles | Met EX-HEX 1757 | -10/Exiles | Met EX-BIN 1840 | -10/Exiles | Met EX-DEC 1909 | -10/Exiles | Visited The Gauntlet 2005 | -10/Exiles | Learned location of Zion (-7) 2103 | -10/Exiles | Discovered new exit (range 14) 2120 | -10/Exiles | Entered Mines 2121 | -9/Mines | Learned location of Storage (-7) 2314 | -9/Mines | Discovered new exit (range 12) 2574 | -9/Mines | Discovered new exit (range 9) 2645 | -9/Mines | Received a Rocket Launcher from a helpful Derelict 2690 | -9/Mines | Met a Derelict shopkeep closing up shop 2746 | -9/Mines | Entered Materials 2746 | -8/Materials | Evolved 4 slots: Propulsion x1, Utility x2, Weapon x1 2747 | -8/Materials | Identified exit to Factory 2959 | -8/Materials | Destroyed 7 combat bots 3166 | -8/Materials | Build established: Gunner 3536 | -8/Materials | Discovered exit to Factory (range 14) 3567 | -8/Materials | Garrison activated, responded to threat 3591 | -8/Materials | Entered Factory 3591 | -7/Factory | Evolved 2 slots: Propulsion x1, Utility x1 3638 | -7/Factory | Identified exit to Storage 3638 | -7/Factory | Identified exit to Lower Caves 3938 | -7/Factory | Build established: Mutant 4064 | -7/Factory | Garrison activated, responded to threat 4782 | -7/Factory | Garrison activated, responded to threat 4910 | -7/Factory | Cargo convoy interrupted 4952 | -7/Factory | Destroyed 9 combat bots 5294 | -7/Factory | System corruption reached 10% 5301 | -7/Factory | Entered Lower Caves 5328 | -7/Lower Caves | Lost 4 parts (1p1n1u1w) 5493 | -7/Lower Caves | Learned Factory terminal intel 5493 | -7/Lower Caves | Spotted B-75 Beast 5582 | -7/Lower Caves | Attracted the attention of an 0b10 outpost 5721 | -7/Lower Caves | Learned Factory stockpile data 5791 | -7/Lower Caves | A Derelict revealed a hidden shortcut to a safe place 6197 | -7/Lower Caves | Discovered new exit (range 11) 6291 | -7/Lower Caves | Entered another Lower Caves area 6342 | -7/Lower Caves | Discovered new exit (range 11) 6363 | -7/Lower Caves | Encountered a Warlord checkpoint 6466 | -7/Lower Caves | Attracted the attention of an 0b10 checkpoint 6789 | -7/Lower Caves | Build established: Scavenger-Mutant 7161 | -7/Lower Caves | Discovered new exit (range 10) 7213 | -7/Lower Caves | Attracted the attention of an 0b10 outpost 7267 | -7/Lower Caves | Lost 3 parts (2n1u) 7368 | -7/Lower Caves | Entered Zion 7368 | -7/Zion | Accompanied by 2 allies 7386 | -7/Zion | Attacked by Zionites 7475 | -7/Zion | NK-0LA came to Zion's defense 7502 | -7/Zion | Core integrity fell below 50% 7514 | -7/Zion | System corruption reached 30% 7524 | -7/Zion | Core integrity fell below 20% 7527 | -7/Zion | Destroyed by NK-0LA with NK-0LA's Tesla Doomcannon Last Messages --------------- 07501_ Lgt. Treads destroyed. 07502_ GQ